fUSD/lending_fUSD_20260221
["ID","MTS","AMOUNT","RATE_DAILY","PERIOD"]
[406240067,1771653048222,-611.81596152,0.00043836,120]
[406240068,1771653048231,-500.0,0.00043836,120]
[406240069,1771653048240,-150.0,0.00043836,2]
[406240070,1771653048250,-500.0,0.00043836,120]
[406240071,1771653048259,-500.0,0.00043836,120]
[406240072,1771653048268,-500.0,0.00043836,120]
[406240073,1771653048277,-500.0,0.00043836,120]
[406240074,1771653048288,-505.1733995,0.00043836,120]
[406240075,1771653048297,-500.0,0.00043836,120]
[406240076,1771653048307,-500.0,0.00043836,120]
[406240077,1771653048316,-500.0,0.00043836,120]
[406240078,1771653048325,-500.0,0.00043836,120]
[406240079,1771653048334,-500.0,0.00043836,120]
[406240080,1771653048343,-500.0,0.00043836,120]
[406240081,1771653048352,-500.0,0.00043836,120]
[406240082,1771653048361,-500.0,0.00043836,120]
[406240083,1771653048371,-500.0,0.00043836,120]
[406240084,1771653048381,-500.0,0.00043836,120]
[406240085,1771653048390,-500.0,0.00043836,120]
[406240086,1771653048399,-500.0,0.00043836,120]
[406240087,1771653048409,-487.06167529,0.00043836,120]
[406240088,1771653048421,-500.0,0.00043836,120]
[406240089,1771653048431,-500.0,0.00043836,120]
[406240090,1771653048440,-258.69527313,0.00043836,120]
[406240091,1771653048449,-150.0,0.00043836,120]
[406240092,1771653048458,-150.0,0.00043836,120]
[406240093,1771653048467,-150.0,0.00043836,120]
[406240094,1771653048476,-265.69009725,0.00043836,120]
[406240095,1771653048485,-246.47014359,0.00043836,120]
[406240096,1771653048494,-251.07712727,0.00043836,120]
[406240097,1771653048503,-157.47905521,0.00043836,120]
[406240098,1771653048512,-500.0,0.00043836,120]
[406240099,1771653048521,-150.0,0.00043836,120]
[406240100,1771653048531,-500.0,0.00043836,120]
[406240101,1771653048540,-173.34358225,0.00043836,120]
[406240102,1771653048550,-500.0,0.00043836,120]
[406240103,1771653048559,-503.4852638,0.00043836,120]
[406240104,1771653048568,-150.0,0.00043844,30]
[406240105,1771653048577,-150.0,0.00043844,30]
[406240106,1771653048587,-150.0,0.00043844,30]
[406240107,1771653048597,-150.0,0.00043873,30]
[406240108,1771653048607,-150.0,0.00043879,30]
[406240109,1771653048616,-152.0,0.000439,120]
[406240110,1771653048626,-161.90624843,0.000439,120]
[406240111,1771653048635,-150.0,0.00043917,120]
[406240112,1771653048644,-150.0,0.00043932,120]
[406240113,1771653048654,-150.0,0.00043961,30]
[406240114,1771653048663,-500.0,0.00043972,120]
[406240115,1771653048673,-500.0,0.00043972,120]
[406240116,1771653048682,-500.0,0.00043972,120]
[406240117,1771653048691,-291.56268661,0.00043972,120]
[406240118,1771653048701,-2645.30804669,0.00044,120]
[406240119,1771653048711,-290.23,0.00044,120]
[406240120,1771653048720,-150.0,0.0004401,30]
[406240121,1771653048730,-150.0,0.00044025,30]
[406240122,1771653048742,-150.0,0.00044049,30]
[406240123,1771653048752,-150.0,0.00044092,120]
[406240124,1771653048761,-150.0,0.00044093,30]
[406240125,1771653048771,-150.0,0.00044093,30]
[406240126,1771653048780,-601.05,0.000441,30]
[406240127,1771653048789,-842.0,0.0004411,120]
[406240128,1771653048798,-151.0,0.0004411,90]
[406240129,1771653048807,-151.0,0.0004411,90]
[406240130,1771653048817,-999.0,0.00044136,120]
[406240131,1771653048826,-150.0,0.00044137,30]
[406240132,1771653048837,-1003.42069736,0.00044142,10]
[406240133,1771653048847,-150.0,0.00044176,30]
[406240134,1771653048861,-150.0,0.00044199,30]
[406240135,1771653048871,-150.0,0.00044199,30]
[406240136,1771653048880,-150.0,0.00044199,30]
[406240137,1771653048888,-254.11773798,0.000442,120]
[406240138,1771653048898,-208.13493363,0.000442,120]
[406240139,1771653048907,-302.0105106,0.000442,120]
[406240140,1771653048917,-203.51721062,0.000442,120]
[406240141,1771653048926,-196.06497719,0.000442,120]
[406240142,1771653048935,-179.71354466,0.000442,120]
[406240143,1771653048946,-170.65526646,0.000442,120]
[406240144,1771653048955,-174.90129163,0.000442,120]
[406240145,1771653048964,-500.0,0.00044205,60]
[406240146,1771653048973,-500.0,0.00044205,60]
[406240147,1771653048983,-150.0,0.00044225,30]
[406240148,1771653048992,-150.0,0.00044229,30]
[406240149,1771653049001,-150.0,0.00044281,120]
[406240150,1771653049010,-150.0,0.0004431,120]
[406240151,1771653049019,-150.0,0.00044312,30]
[406240152,1771653049029,-291.48203343,0.00044318,10]
[406240153,1771653049038,-150.0,0.00044342,30]
[406240154,1771653049047,-150.0,0.00044342,30]
[406240155,1771653049056,-150.0,0.00044342,30]
[406240156,1771653049065,-150.0,0.00044355,120]
[406240157,1771653049074,-748.02689981,0.00044373,15]
[406240158,1771653049083,-515.91776719,0.00044383,120]
[406240159,1771653049092,-513.15981724,0.00044383,120]
[406240160,1771653049101,-500.0,0.00044383,120]
[406240161,1771653049110,-376.91,0.00044383,120]
[406240162,1771653049119,-500.0,0.00044383,120]
[406240163,1771653049128,-500.0,0.00044383,120]
[406240164,1771653049137,-501.26950981,0.00044383,120]
[406240165,1771653049146,-500.0,0.00044383,120]
[406240166,1771653049155,-501.64699535,0.00044383,120]
[406240167,1771653049163,-500.0,0.00044383,120]
[406240168,1771653049172,-500.0,0.00044383,120]
[406240169,1771653049181,-501.61481021,0.00044383,120]
[406240170,1771653049190,-500.0,0.00044383,120]
[406240171,1771653049199,-500.0,0.00044383,120]
[406240172,1771653049208,-508.19518329,0.00044383,120]
[406240173,1771653049216,-500.0,0.00044383,120]
[406240174,1771653049226,-500.0,0.00044383,120]
[406240175,1771653049234,-595.28423853,0.00044383,120]
[406240176,1771653049243,-500.0,0.00044383,120]
[406240177,1771653049252,-555.21570653,0.00044383,120]
[406240178,1771653049261,-500.0,0.00044383,120]
[406240179,1771653049270,-500.0,0.00044383,120]
[406240180,1771653049279,-500.0,0.00044383,120]
[406240181,1771653049288,-500.0,0.00044383,120]
[406240182,1771653049297,-500.0,0.00044383,120]
[406240183,1771653049306,-500.0,0.00044383,120]
[406240184,1771653049315,-500.0,0.00044383,120]
[406240185,1771653049324,-500.0,0.00044383,120]
[406240186,1771653049333,-510.82458225,0.00044383,120]
[406240187,1771653049342,-500.0,0.00044383,120]
[406240188,1771653049351,-500.0,0.00044383,120]
[406240189,1771653049360,-500.0,0.00044383,120]
[406240190,1771653049369,-500.0,0.00044383,120]
[406240191,1771653049378,-500.0,0.00044383,120]
[406240192,1771653049387,-500.0,0.00044383,120]
[406240193,1771653049395,-515.39512248,0.00044383,120]
[406240194,1771653049404,-500.0,0.00044383,120]
[406240195,1771653049413,-500.0,0.00044383,120]
[406240196,1771653049422,-277.04,0.00044383,120]
[406240197,1771653049431,-544.44,0.00044383,120]
[406240198,1771653049440,-217.80167523,0.00044383,120]
[406240199,1771653049449,-521.53883085,0.00044383,120]
[406240200,1771653049458,-507.25015181,0.00044383,120]
[406240201,1771653049467,-501.1906708,0.00044383,30]
[406240202,1771653049476,-500.0,0.00044383,120]
[406240203,1771653049485,-500.0,0.00044383,120]
[406240204,1771653049494,-500.0,0.00044383,120]
[406240205,1771653049503,-500.0,0.00044383,120]
[406240206,1771653049512,-500.0,0.00044383,120]
[406240207,1771653049521,-352.90561366,0.00044383,120]
[406240208,1771653049530,-503.23055262,0.00044383,120]
[406240209,1771653049540,-505.09170073,0.00044383,120]
[406240210,1771653049549,-500.0,0.00044383,120]
[406240211,1771653049558,-500.0,0.00044383,120]
[406240212,1771653049567,-516.58137034,0.00044383,120]
[406240213,1771653049577,-521.89194286,0.00044383,120]
[406240214,1771653049586,-639.08292337,0.00044383,120]
[406240215,1771653049596,-209.58629724,0.00044383,120]
[406240216,1771653049606,-500.0,0.00044383,120]
[406240217,1771653049615,-500.0,0.00044383,120]
[406240218,1771653049624,-500.0,0.00044383,120]
[406240219,1771653049633,-500.0,0.00044383,120]
[406240220,1771653049643,-500.0,0.00044383,120]
[406240221,1771653049652,-552.02595951,0.00044383,120]
[406240222,1771653049663,-500.0,0.00044383,120]
[406240223,1771653049672,-575.58814338,0.00044383,120]
[406240224,1771653049681,-502.11616156,0.00044383,120]
[406240225,1771653049691,-507.45176633,0.00044383,120]
[406240226,1771653049701,-500.0,0.00044383,120]
[406240227,1771653049710,-585.73530372,0.00044383,120]
[406240228,1771653049719,-500.0,0.00044383,120]
[406240229,1771653049729,-500.0,0.00044383,120]
[406240230,1771653049738,-362.91845366,0.00044383,120]
[406240231,1771653049747,-500.0,0.00044383,120]
[406240232,1771653049757,-500.0,0.00044383,120]
[406240233,1771653049767,-500.0,0.00044383,120]
[406240234,1771653049776,-500.0,0.00044383,120]
[406240235,1771653049785,-500.0,0.00044383,120]
[406240236,1771653049794,-500.0,0.00044383,120]
[406240237,1771653049803,-500.0,0.00044383,120]
[406240238,1771653049812,-500.0,0.00044383,120]
[406240239,1771653049821,-500.0,0.00044383,120]
[406240240,1771653049830,-500.0,0.00044383,120]
[406240241,1771653049839,-517.24018428,0.00044383,120]
[406240242,1771653049849,-473.3496963,0.00044383,120]
[406240243,1771653049858,-504.09469076,0.00044383,120]
[406240244,1771653049867,-509.14392984,0.00044383,120]
[406240245,1771653049876,-500.0,0.00044383,120]
[406240246,1771653049884,-500.0,0.00044383,120]
[406240247,1771653049893,-500.0,0.00044383,120]
[406240248,1771653049902,-500.0,0.00044383,120]
[406240249,1771653049911,-520.03312097,0.00044383,120]
[406240250,1771653049920,-506.13137636,0.00044383,120]
[406240251,1771653049929,-197.49568519,0.00044383,120]
[406240252,1771653049938,-504.19461774,0.00044383,120]
[406240253,1771653049947,-500.0,0.00044383,120]
[406240254,1771653049955,-495.50681505,0.00044383,120]
[406240255,1771653049964,-506.23569944,0.00044383,120]
[406240256,1771653049973,-521.99440505,0.00044383,120]
[406240257,1771653049982,-500.0,0.00044383,120]
[406240258,1771653049991,-500.0,0.00044383,120]
[406240259,1771653049999,-500.0,0.00044383,120]
[406240260,1771653050009,-500.0,0.00044383,120]
[406240261,1771653050018,-507.58818048,0.00044383,120]
[406240262,1771653050027,-500.0,0.00044383,120]
[406240263,1771653050036,-500.0,0.00044383,120]
[406240264,1771653050045,-500.0,0.00044383,120]
[406240265,1771653050091,-500.0,0.00044383,120]
[406240266,1771653050101,-500.0,0.00044383,120]
[406240267,1771653050111,-500.0,0.00044383,120]
[406240268,1771653050119,-527.01553948,0.00044383,120]
[406240269,1771653050128,-508.13299025,0.00044383,120]
[406240270,1771653050139,-502.0919166,0.00044383,120]
[406240271,1771653050148,-500.0,0.00044383,120]
[406240272,1771653050157,-500.0,0.00044383,120]
[406240273,1771653050166,-500.0,0.00044383,120]
[406240274,1771653050176,-500.0,0.00044383,120]
[406240275,1771653050186,-500.0,0.00044383,120]
[406240276,1771653050195,-500.0,0.00044383,120]
[406240277,1771653050205,-500.0,0.00044383,120]
[406240278,1771653050216,-298.88736946,0.00044383,120]
[406240279,1771653050226,-500.0,0.00044383,120]
[406240280,1771653050235,-500.0,0.00044383,120]
[406240281,1771653050244,-500.0,0.00044383,120]
[406240282,1771653050253,-500.0,0.00044383,120]
[406240283,1771653050263,-500.0,0.00044383,120]
[406240284,1771653050274,-500.0,0.00044383,120]
[406240285,1771653050284,-500.0,0.00044383,120]
[406240286,1771653050295,-500.0,0.00044383,120]
[406240287,1771653050303,-510.28815343,0.00044383,120]
[406240288,1771653050312,-492.63388749,0.00044383,120]
[406240289,1771653050321,-504.76179383,0.00044383,120]
[406240290,1771653050330,-511.80971663,0.00044383,120]
[406240291,1771653050339,-500.0,0.00044383,120]
[406240292,1771653050348,-500.0,0.00044383,120]
[406240293,1771653050357,-500.0,0.00044383,120]
[406240294,1771653050367,-500.0,0.00044383,120]
[406240295,1771653050376,-314.0843047,0.00044383,120]
[406240296,1771653050387,-500.0,0.00044383,120]
[406240297,1771653050396,-500.0,0.00044383,120]
[406240298,1771653050405,-500.0,0.00044383,120]
[406240299,1771653050413,-508.07976746,0.00044383,120]
[406240300,1771653050422,-500.0,0.00044383,120]
[406240301,1771653050432,-637.52258989,0.00044383,120]
[406240302,1771653050443,-500.0,0.00044383,120]
[406240303,1771653050452,-500.0,0.00044383,120]
[406240304,1771653050460,-500.0,0.00044383,120]
[406240305,1771653050469,-500.0,0.00044383,120]
[406240306,1771653050478,-512.12608978,0.00044383,120]
[406240307,1771653050487,-500.0,0.00044383,120]
[406240308,1771653050496,-500.0,0.00044383,120]
[406240309,1771653050506,-500.0,0.00044383,120]
[406240310,1771653050515,-346.69382525,0.00044383,120]
[406240311,1771653050524,-500.0,0.00044383,120]
[406240312,1771653050534,-500.0,0.00044383,120]
[406240313,1771653050543,-515.6229486,0.00044383,120]
[406240314,1771653050551,-503.21340992,0.00044383,120]
[406240315,1771653050560,-500.0,0.00044383,120]
[406240316,1771653050570,-500.0,0.00044383,120]
[406240317,1771653050579,-505.0831861,0.00044383,120]
[406240318,1771653050588,-500.0,0.00044383,60]
[406240319,1771653050598,-500.0,0.00044383,60]
[406240320,1771653050610,-500.0,0.00044383,60]
[406240321,1771653050620,-510.55780513,0.00044383,60]
[406240322,1771653050629,-500.0,0.00044383,120]
[406240323,1771653050638,-500.0,0.00044383,120]
[406240324,1771653050647,-500.0,0.00044383,120]
[406240325,1771653050656,-500.0,0.00044383,120]
[406240326,1771653050666,-512.74877511,0.00044383,120]
[406240327,1771653050675,-186.40866429,0.00044383,120]
[406240328,1771653050684,-500.0,0.00044383,120]
[406240329,1771653050693,-500.0,0.00044383,120]
[406240330,1771653050702,-500.0,0.00044383,120]
[406240331,1771653050712,-509.34850573,0.00044383,120]
[406240332,1771653050721,-165.47656759,0.00044383,120]
[406240333,1771653050730,-521.97003643,0.00044383,120]
[406240334,1771653050739,-500.0,0.00044383,120]
[406240335,1771653050748,-524.15358438,0.00044383,120]
[406240336,1771653050757,-500.0,0.00044383,120]
[406240337,1771653050767,-500.0,0.00044383,120]
[406240338,1771653050778,-500.0,0.00044383,120]
[406240339,1771653050787,-500.0,0.00044383,120]
[406240340,1771653050798,-500.0,0.00044383,120]
[406240341,1771653050809,-500.0,0.00044383,120]
[406240342,1771653050818,-500.0,0.00044383,120]
[406240343,1771653050827,-500.0,0.00044383,120]
[406240344,1771653050837,-500.0,0.00044383,120]
[406240345,1771653050847,-500.0,0.00044383,120]
[406240346,1771653050859,-500.0,0.00044383,120]
[406240347,1771653050869,-524.32809029,0.00044383,120]
[406240348,1771653050879,-500.0,0.00044383,120]
[406240349,1771653050889,-500.0,0.00044383,120]
[406240350,1771653050900,-500.0,0.00044383,120]
[406240351,1771653050910,-500.0,0.00044383,120]
[406240352,1771653050920,-500.0,0.00044383,120]
[406240353,1771653050930,-500.0,0.00044383,120]
[406240354,1771653050939,-500.0,0.00044383,120]
[406240355,1771653050948,-354.66664647,0.00044383,120]
[406240356,1771653050958,-500.0,0.00044383,120]
[406240357,1771653050968,-500.0,0.00044383,120]
[406240358,1771653050977,-523.65616969,0.00044383,120]
[406240359,1771653050987,-500.0,0.00044383,120]
[406240360,1771653050997,-500.0,0.00044383,120]
[406240361,1771653051007,-502.83860751,0.00044383,120]
[406240362,1771653051016,-544.92450905,0.00044383,120]
[406240363,1771653051025,-500.0,0.00044383,120]
[406240364,1771653051035,-500.0,0.00044383,120]
[406240365,1771653051043,-500.0,0.00044383,120]
[406240366,1771653051052,-500.0,0.00044383,120]
[406240367,1771653051062,-580.90127889,0.00044383,120]
[406240368,1771653051071,-501.91157678,0.00044383,120]
[406240369,1771653051083,-500.0,0.00044383,120]
[406240370,1771653051092,-500.0,0.00044383,120]
[406240371,1771653051104,-221.1746527,0.00044383,120]
[406240372,1771653051114,-500.0,0.00044383,120]
[406240373,1771653051124,-500.0,0.00044383,120]
[406240374,1771653051134,-616.79437539,0.00044383,120]
[406240375,1771653051144,-500.0,0.00044383,120]
[406240376,1771653051155,-500.0,0.00044383,120]
[406240377,1771653051165,-500.0,0.00044383,120]
[406240378,1771653051177,-500.0,0.00044383,120]
[406240379,1771653051186,-500.0,0.00044383,120]
[406240380,1771653051208,-500.0,0.00044383,120]
[406240381,1771653051217,-500.0,0.00044383,120]
[406240382,1771653051230,-500.0,0.00044383,120]
[406240383,1771653051242,-500.0,0.00044383,120]
[406240384,1771653051251,-500.0,0.00044383,120]
[406240385,1771653051262,-510.80100348,0.00044383,120]
[406240386,1771653051272,-500.0,0.00044383,120]
[406240387,1771653051282,-500.0,0.00044383,120]
[406240388,1771653051291,-295.46463366,0.00044383,120]
[406240389,1771653051300,-500.0,0.00044383,120]
[406240390,1771653051310,-500.0,0.00044383,120]
[406240391,1771653051319,-500.0,0.00044383,120]
[406240392,1771653051327,-500.0,0.00044383,120]
[406240393,1771653051336,-500.0,0.00044383,120]
[406240394,1771653051345,-509.76189445,0.00044383,120]
[406240395,1771653051354,-500.0,0.00044383,120]
[406240396,1771653051363,-510.72124535,0.00044383,120]
[406240397,1771653051372,-500.0,0.00044383,120]
[406240398,1771653051381,-500.0,0.00044383,120]
[406240399,1771653051390,-500.0,0.00044383,120]
[406240400,1771653051399,-500.0,0.00044383,120]
[406240401,1771653051410,-510.10249668,0.00044383,120]
[406240402,1771653051419,-500.0,0.00044383,120]
[406240403,1771653051428,-500.0,0.00044383,120]
[406240404,1771653051437,-511.18089232,0.00044383,120]
[406240405,1771653051446,-500.0,0.00044383,120]
[406240406,1771653051455,-569.33289066,0.00044383,120]
[406240407,1771653051463,-564.5072549,0.00044383,120]
[406240408,1771653051472,-500.0,0.00044383,120]
[406240409,1771653051482,-506.74752187,0.00044383,120]
[406240410,1771653051491,-500.0,0.00044383,120]
[406240411,1771653051500,-507.81951182,0.00044383,120]
[406240412,1771653051509,-500.0,0.00044383,120]
[406240413,1771653051519,-521.87861725,0.00044383,120]
[406240414,1771653051528,-500.0,0.00044383,120]
[406240415,1771653051538,-500.0,0.00044383,120]
[406240416,1771653051547,-500.0,0.00044383,120]
[406240417,1771653051556,-532.1557588,0.00044383,120]
[406240418,1771653051566,-500.0,0.00044383,120]
[406240419,1771653051575,-508.52655242,0.00044383,120]
[406240420,1771653051584,-507.71638965,0.00044383,120]
[406240421,1771653051594,-500.0,0.00044383,120]
[406240422,1771653051603,-500.0,0.00044383,120]
[406240423,1771653051612,-582.75327494,0.00044383,120]
[406240424,1771653051622,-502.56168107,0.00044383,120]
[406240425,1771653051631,-504.91289601,0.00044383,120]
[406240426,1771653051641,-500.0,0.00044383,120]
[406240427,1771653051650,-500.0,0.00044383,120]
[406240428,1771653051659,-511.54134887,0.00044383,120]
[406240429,1771653051668,-514.76239111,0.00044383,120]
[406240430,1771653051677,-500.0,0.00044383,120]
[406240431,1771653051687,-504.00985971,0.00044383,120]
[406240432,1771653051696,-514.96871014,0.00044383,120]
[406240433,1771653051705,-524.95453479,0.00044383,120]
[406240434,1771653051715,-500.0,0.00044383,120]
[406240435,1771653051724,-518.19248142,0.00044383,120]
[406240436,1771653051733,-611.73479644,0.00044383,120]
[406240437,1771653051743,-500.0,0.00044383,120]
[406240438,1771653051756,-500.0,0.00044383,120]
[406240439,1771653051765,-500.0,0.00044383,120]
[406240440,1771653051775,-607.61037568,0.00044383,120]
[406240441,1771653051784,-500.0,0.00044383,120]
[406240442,1771653051793,-506.65652122,0.00044383,120]
[406240443,1771653051802,-504.76489541,0.00044383,120]
[406240444,1771653051811,-500.0,0.00044383,120]
[406240445,1771653051820,-500.0,0.00044383,120]
[406240446,1771653051830,-500.0,0.00044383,120]
[406240447,1771653051839,-378.8981236,0.00044383,120]
[406240448,1771653051848,-500.0,0.00044383,120]
[406240449,1771653051859,-500.0,0.00044383,120]
[406240450,1771653051868,-500.0,0.00044383,120]
[406240451,1771653051877,-500.0,0.00044383,120]
[406240452,1771653051887,-500.0,0.00044383,120]
[406240453,1771653051895,-500.0,0.00044383,120]
[406240454,1771653051905,-506.64971029,0.00044383,120]
[406240455,1771653051913,-500.0,0.00044383,120]
[406240456,1771653051923,-337.87227258,0.00044383,120]
[406240457,1771653051932,-547.30162438,0.00044383,120]
[406240458,1771653051941,-510.97348352,0.00044383,120]
[406240459,1771653051950,-500.0,0.00044383,120]
[406240460,1771653051959,-508.97466326,0.00044383,120]
[406240461,1771653051970,-595.48407475,0.00044383,120]
[406240462,1771653051980,-500.0,0.00044383,120]
[406240463,1771653051990,-500.0,0.00044383,120]
[406240464,1771653052000,-500.0,0.00044383,120]
[406240465,1771653052009,-352.13385114,0.00044383,120]
[406240466,1771653052019,-500.0,0.00044383,120]
[406240467,1771653052028,-500.0,0.00044383,120]
[406240468,1771653052037,-500.0,0.00044383,120]
[406240469,1771653052046,-500.0,0.00044383,120]
[406240470,1771653052056,-500.0,0.00044383,120]
[406240471,1771653052065,-500.0,0.00044383,120]
[406240472,1771653052074,-500.0,0.00044383,120]
[406240473,1771653052082,-500.0,0.00044383,120]
[406240474,1771653052091,-500.0,0.00044383,120]
[406240475,1771653052100,-579.88384569,0.00044383,120]
[406240476,1771653052111,-528.32417407,0.00044383,120]
[406240477,1771653052130,-500.0,0.00044383,120]
[406240478,1771653052144,-500.0,0.00044383,120]
[406240479,1771653052154,-500.0,0.00044383,120]
[406240480,1771653052164,-500.0,0.00044383,120]
[406240481,1771653052175,-500.0,0.00044383,120]
[406240482,1771653052185,-500.0,0.00044383,120]
[406240483,1771653052196,-500.0,0.00044383,120]
[406240484,1771653052208,-500.0,0.00044383,120]
[406240485,1771653052230,-488.59996574,0.00044383,120]
[406240486,1771653052240,-500.0,0.00044383,120]
[406240487,1771653052251,-500.0,0.00044383,120]
[406240488,1771653052260,-500.0,0.00044383,120]
[406240489,1771653052269,-500.0,0.00044383,120]
[406240490,1771653052279,-531.65847934,0.00044383,120]
[406240491,1771653052288,-500.0,0.00044383,120]
[406240492,1771653052297,-500.0,0.00044383,120]
[406240493,1771653052306,-277.79916877,0.00044383,120]
[406240494,1771653052316,-500.0,0.00044383,120]
[406240495,1771653052326,-500.0,0.00044383,120]
[406240496,1771653052335,-500.0,0.00044383,120]
[406240497,1771653052345,-500.0,0.00044383,120]
[406240498,1771653052356,-500.0,0.00044383,120]
[406240499,1771653052365,-500.0,0.00044383,120]
[406240500,1771653052375,-500.0,0.00044383,120]
[406240501,1771653052386,-429.38948118,0.00044383,120]
[406240502,1771653052396,-499.39199322,0.00044383,120]
[406240503,1771653052406,-500.0,0.00044383,120]
[406240504,1771653052415,-421.76114673,0.00044383,120]
[406240505,1771653052425,-500.0,0.00044383,120]
[406240506,1771653052434,-500.0,0.00044383,120]
[406240507,1771653052443,-643.24374837,0.00044383,120]
[406240508,1771653052452,-535.9166303,0.00044383,120]
[406240509,1771653052461,-508.30578605,0.00044383,120]
[406240510,1771653052471,-500.6606325,0.00044383,120]
[406240511,1771653052480,-501.29979054,0.00044383,120]
[406240512,1771653052489,-533.74747471,0.00044383,120]
[406240513,1771653052498,-500.0,0.00044383,120]
[406240514,1771653052507,-500.0,0.00044383,120]
[406240515,1771653052516,-500.0,0.00044383,120]
[406240516,1771653052526,-519.45764554,0.00044383,120]
[406240517,1771653052535,-500.0,0.00044383,120]
[406240518,1771653052545,-500.0,0.00044383,120]
[406240519,1771653052554,-160.57,0.00044383,120]
[406240520,1771653052563,-504.2476188,0.00044383,120]
[406240521,1771653052572,-506.36521654,0.00044383,120]
[406240522,1771653052582,-552.64939857,0.00044383,120]
[406240523,1771653052591,-531.69635906,0.00044383,120]
[406240524,1771653052600,-500.0,0.00044383,120]
[406240525,1771653052610,-500.0,0.00044383,120]
[406240526,1771653052625,-500.0,0.00044383,120]
[406240527,1771653052635,-500.0,0.00044383,120]
[406240528,1771653052645,-500.0,0.00044383,120]
[406240529,1771653052655,-500.0,0.00044383,120]
[406240530,1771653052664,-500.0,0.00044383,120]
[406240531,1771653052674,-500.0,0.00044383,120]
[406240532,1771653052684,-329.40558104,0.00044383,120]
[406240533,1771653052695,-500.0,0.00044383,120]
[406240534,1771653052707,-303.34224071,0.00044383,120]
[406240535,1771653052717,-500.0,0.00044383,120]
[406240536,1771653052726,-417.46717475,0.00044383,120]
[406240537,1771653052735,-500.0,0.00044383,120]
[406240538,1771653052745,-500.0,0.00044383,120]
[406240539,1771653052754,-500.0,0.00044383,120]
[406240540,1771653052763,-500.0,0.00044383,120]
[406240541,1771653052772,-500.0,0.00044383,120]
[406240542,1771653052781,-536.15308894,0.00044383,120]
[406240543,1771653052790,-500.0,0.00044383,120]
[406240544,1771653052799,-500.0,0.00044383,120]
[406240545,1771653052809,-500.0,0.00044383,120]
[406240546,1771653052818,-500.0,0.00044383,120]
[406240547,1771653052827,-500.0,0.00044383,120]
[406240548,1771653052836,-500.0,0.00044383,120]
[406240549,1771653052845,-425.0752589,0.00044383,120]
[406240550,1771653052857,-500.0,0.00044383,120]
[406240551,1771653052865,-500.0,0.00044383,120]
[406240552,1771653052874,-572.66588544,0.00044383,120]
[406240553,1771653052883,-500.0,0.00044383,60]
[406240554,1771653052892,-500.0,0.00044383,60]
[406240555,1771653052901,-590.11524275,0.00044383,120]
[406240556,1771653052910,-500.0,0.00044383,60]
[406240557,1771653052919,-500.0,0.00044383,60]
[406240558,1771653052928,-500.0,0.00044383,60]
[406240559,1771653052937,-500.0,0.00044383,120]
[406240560,1771653052947,-500.0,0.00044383,60]
[406240561,1771653052956,-500.0,0.00044383,120]
[406240562,1771653052966,-500.0,0.00044383,60]
[406240563,1771653052975,-500.0,0.00044383,120]
[406240564,1771653052984,-500.0,0.00044383,120]
[406240565,1771653052992,-500.0,0.00044383,60]
[406240566,1771653053001,-500.0,0.00044383,120]